fUST/lending_fUST_20240714
["ID","MTS","AMOUNT","RATE_DAILY","PERIOD"]
[331977379,1720915848902,-500.0,0.00025205,2]
[331977380,1720915848911,-500.0,0.00025205,2]
[331977381,1720915848920,-500.0,0.00025205,2]
[331977382,1720915848930,-500.0,0.00025205,2]
[331977383,1720915848941,-334.37013998,0.00025205,2]
[331977384,1720915848951,-500.0,0.00025205,2]
[331977385,1720915848961,-500.0,0.00025205,2]
[331977386,1720915848971,-500.0,0.00025205,2]
[331977387,1720915848981,-512.24,0.00025205,2]
[331977388,1720915848991,-500.0,0.00025205,2]
[331977389,1720915849002,-500.0,0.00025205,2]
[331977390,1720915849011,-500.0,0.00025205,2]
[331977391,1720915849021,-500.0,0.00025205,2]
[331977392,1720915849031,-500.0,0.00025205,2]
[331977393,1720915849041,-500.0,0.00025205,2]
[331977394,1720915849050,-500.0,0.00025205,2]
[331977395,1720915849059,-500.0,0.00025205,2]
[331977396,1720915849069,-500.0,0.00025205,2]
[331977397,1720915849079,-261.34069362,0.00025205,2]
[331977398,1720915849088,-162.84442639,0.00025205,2]
[331977399,1720915849098,-500.0,0.00025205,2]
[331977400,1720915849107,-518.0647578,0.00025205,2]
[331977401,1720915849116,-472.6742293,0.00025205,2]
[331977402,1720915849126,-303.4484443,0.00025205,2]
[331977403,1720915849135,-500.0,0.00025205,2]
[331977404,1720915849144,-500.0,0.00025205,2]
[331977405,1720915849154,-500.0,0.00025205,2]
[331977406,1720915849163,-607.49,0.00025205,2]
[331977407,1720915849172,-500.0,0.00025205,2]
[331977408,1720915849182,-500.0,0.00025205,2]
[331977409,1720915849191,-500.0,0.00025205,2]
[331977410,1720915849200,-500.0,0.00025205,2]
[331977411,1720915849264,-500.0,0.00025205,2]
[331977412,1720915849274,-500.0,0.00025205,2]
[331977413,1720915849283,-500.0,0.00025205,2]
[331977414,1720915849293,-521.05740123,0.00025205,2]
[331977415,1720915849303,-500.0,0.00025205,2]
[331977416,1720915849315,-500.0,0.00025205,2]
[331977417,1720915849324,-500.0,0.00025205,2]
[331977418,1720915849335,-500.0,0.00025205,2]
[331977419,1720915849345,-500.0,0.00025205,2]
[331977420,1720915849355,-500.0,0.00025205,2]
[331977421,1720915849366,-500.0,0.00025205,2]
[331977422,1720915849375,-500.0,0.00025205,2]
[331977423,1720915849385,-500.0,0.00025205,2]
[331977424,1720915849394,-500.0,0.00025205,2]
[331977425,1720915849404,-500.0,0.00025205,2]
[331977426,1720915849414,-847.61,0.00025205,2]
[331977427,1720915849424,-1500.0,0.00025205,2]
[331977428,1720915849434,-500.0,0.00025205,2]
[331977429,1720915849444,-500.0,0.00025205,2]
[331977430,1720915849455,-500.0,0.00025205,2]
[331977431,1720915849465,-500.0,0.00025205,2]
[331977432,1720915849474,-500.0,0.00025205,2]
[331977433,1720915849484,-206.18884848,0.00025205,2]
[331977434,1720915849493,-500.0,0.00025205,2]
[331977435,1720915849503,-500.0,0.00025205,2]
[331977436,1720915849512,-522.14139968,0.00025205,2]
[331977437,1720915849522,-500.0,0.00025205,2]
[331977438,1720915849531,-500.0,0.00025205,2]
[331977439,1720915849540,-500.0,0.00025205,2]
[331977440,1720915849550,-500.0,0.00025205,2]
[331977441,1720915849559,-500.0,0.00025205,2]
[331977442,1720915849569,-500.0,0.00025205,2]
[331977443,1720915849578,-500.0,0.00025205,2]
[331977444,1720915849588,-500.0,0.00025205,2]
[331977445,1720915849598,-500.0,0.00025205,2]
[331977446,1720915849609,-500.0,0.00025205,2]
[331977447,1720915849618,-500.0,0.00025205,2]
[331977448,1720915849629,-276.24629005,0.00025205,2]
[331977449,1720915849639,-505.61919787,0.00025205,2]
[331977450,1720915849649,-200.0,0.00025205,2]
[331977451,1720915849658,-500.0,0.00025205,2]
[331977452,1720915849667,-500.0,0.00025205,2]
[331977453,1720915849677,-500.0,0.00025205,2]
[331977454,1720915849688,-2441.18,0.00025205,2]
[331977455,1720915849699,-500.0,0.00025205,2]
[331977456,1720915849723,-500.0,0.00025205,2]
[331977457,1720915849739,-500.0,0.00025205,2]
[331977458,1720915849758,-500.0,0.00025205,2]
[331977459,1720915849777,-500.0,0.00025205,2]
[331977460,1720915849796,-764.10820365,0.00025205,5]
[331977461,1720915849817,-500.0,0.00025205,2]
[331977462,1720915849833,-502.81008216,0.00025205,2]
[331977463,1720915849849,-500.0,0.00025205,2]
[331977464,1720915849867,-500.0,0.00025205,2]
[331977465,1720915849890,-500.0,0.00025205,2]
[331977466,1720915849901,-500.0,0.00025205,2]
[331977467,1720915849918,-500.0,0.00025205,2]
[331977468,1720915849935,-500.0,0.00025205,2]
[331977469,1720915849951,-500.0,0.00025205,2]
[331977470,1720915849964,-500.0,0.00025205,2]
[331977471,1720915849979,-500.0,0.00025205,2]
[331977472,1720915849993,-500.0,0.00025205,2]
[331977473,1720915850008,-521.085427,0.00025205,7]
[331977474,1720915850023,-500.0,0.00025205,2]
[331977475,1720915850037,-500.0,0.00025205,2]
[331977476,1720915850052,-500.0,0.00025205,2]
[331977477,1720915850068,-500.0,0.00025205,2]
[331977478,1720915850082,-151.0,0.00025205,7]
[331977479,1720915850096,-500.0,0.00025205,2]
[331977480,1720915850112,-500.0,0.00025205,2]
[331977481,1720915850126,-500.0,0.00025205,2]
[331977482,1720915850141,-500.0,0.00025205,2]
[331977483,1720915850156,-372.66804691,0.00025205,2]
[331977484,1720915850169,-500.0,0.00025205,2]
[331977485,1720915850184,-500.0,0.00025205,2]
[331977486,1720915850198,-500.0,0.00025205,2]
[331977487,1720915850211,-500.0,0.00025205,2]
[331977488,1720915850226,-500.0,0.00025205,2]
[331977489,1720915850241,-586.21584091,0.00025205,2]
[331977490,1720915850254,-500.0,0.00025205,2]
[331977491,1720915850264,-500.0,0.00025205,2]
[331977492,1720915850274,-500.0,0.00025205,2]
[331977493,1720915850283,-500.0,0.00025205,2]
[331977494,1720915850292,-200.94176796,0.00025205,7]
[331977495,1720915850301,-162.20251993,0.00025205,2]
[331977496,1720915850311,-500.0,0.00025205,2]
[331977497,1720915850320,-500.0,0.00025205,2]
[331977498,1720915850442,-355.26140478,0.00025205,2]
[331977499,1720915850458,-500.0,0.00025205,2]
[331977500,1720915850468,-500.0,0.00025205,2]
[331977501,1720915850478,-659.89,0.00025205,2]
[331977502,1720915850487,-500.0,0.00025205,2]
[331977503,1720915850496,-500.0,0.00025205,2]
[331977504,1720915850507,-154.73246416,0.00025205,2]
[331977505,1720915850516,-500.0,0.00025205,2]
[331977506,1720915850526,-554.25,0.00025205,2]
[331977507,1720915850536,-500.0,0.00025205,2]
[331977508,1720915850545,-500.0,0.00025205,2]
[331977509,1720915850554,-500.0,0.00025205,2]
[331977510,1720915850564,-500.0,0.00025205,2]
[331977511,1720915850573,-500.0,0.00025205,2]
[331977512,1720915850582,-500.0,0.00025205,2]
[331977513,1720915850591,-151.0,0.00025205,4]
[331977514,1720915850602,-500.0,0.00025205,2]
[331977515,1720915850611,-500.0,0.00025205,2]
[331977516,1720915850622,-500.0,0.00025205,2]
[331977517,1720915850631,-500.0,0.00025205,2]
[331977518,1720915850642,-500.0,0.00025205,2]
[331977519,1720915850654,-500.0,0.00025205,2]
[331977520,1720915850665,-500.0,0.00025205,2]
[331977521,1720915850675,-500.0,0.00025205,2]
[331977522,1720915850684,-600.77622436,0.00025205,2]
[331977523,1720915850693,-500.0,0.00025205,2]
[331977524,1720915850703,-1039.55,0.00025205,2]
[331977525,1720915850711,-500.0,0.00025205,2]
[331977526,1720915850721,-299.03463229,0.00025205,2]
[331977527,1720915850730,-500.0,0.00025205,2]
[331977528,1720915850739,-500.0,0.00025205,2]
[331977529,1720915850748,-500.0,0.00025205,2]
[331977530,1720915850758,-500.0,0.00025205,2]
[331977531,1720915850767,-151.74958278,0.00025205,2]
[331977532,1720915850777,-281.36419801,0.00025205,2]
[331977533,1720915850787,-500.0,0.00025205,2]
[331977534,1720915850798,-500.0,0.00025205,2]
[331977535,1720915850807,-500.0,0.00025205,2]
[331977536,1720915850821,-623.97149866,0.00025205,2]
[331977537,1720915850832,-500.0,0.00025205,2]
[331977538,1720915850842,-500.0,0.00025205,2]
[331977539,1720915850851,-500.0,0.00025205,2]
[331977540,1720915850862,-1189.62,0.00025205,2]
[331977541,1720915850871,-500.0,0.00025205,2]
[331977542,1720915850879,-500.0,0.00025205,2]
[331977543,1720915850889,-500.0,0.00025205,2]
[331977544,1720915850899,-500.0,0.00025205,2]
[331977545,1720915850909,-500.0,0.00025205,2]
[331977546,1720915850920,-500.0,0.00025205,2]
[331977547,1720915850929,-500.0,0.00025205,2]
[331977548,1720915850938,-500.0,0.00025205,2]
[331977549,1720915850947,-500.0,0.00025205,2]
[331977550,1720915850958,-500.0,0.00025205,2]
[331977551,1720915850968,-500.0,0.00025205,2]
[331977552,1720915850977,-500.0,0.00025205,2]
[331977553,1720915850986,-500.0,0.00025205,2]
[331977554,1720915850997,-500.0,0.00025205,2]
[331977555,1720915851007,-500.0,0.00025205,2]
[331977556,1720915851016,-500.0,0.00025205,2]
[331977557,1720915851026,-507.539501,0.00025205,7]
[331977558,1720915851036,-500.0,0.00025205,2]
[331977559,1720915851047,-507.539501,0.00025205,7]
[331977560,1720915851059,-500.0,0.00025205,2]
[331977561,1720915851068,-500.0,0.00025205,2]
[331977562,1720915851078,-500.0,0.00025205,2]
[331977563,1720915851087,-500.0,0.00025205,2]
[331977564,1720915851096,-500.0,0.00025205,2]
[331977565,1720915851105,-500.0,0.00025205,2]
[331977566,1720915851116,-500.0,0.00025205,2]
[331977567,1720915851126,-500.0,0.00025205,2]
[331977568,1720915851136,-500.0,0.00025205,2]
[331977569,1720915851146,-500.0,0.00025205,2]
[331977570,1720915851156,-206.945181,0.00025205,7]
[331977571,1720915851166,-500.0,0.00025205,2]
[331977572,1720915851175,-500.0,0.00025205,2]
[331977573,1720915851185,-500.0,0.00025205,2]
[331977574,1720915851195,-500.0,0.00025205,2]
[331977575,1720915851205,-500.0,0.00025205,2]
[331977576,1720915851214,-500.0,0.00025205,2]
[331977577,1720915851223,-500.0,0.00025205,2]
[331977578,1720915851232,-500.0,0.00025205,2]
[331977579,1720915851241,-500.0,0.00025205,2]
[331977580,1720915851251,-500.0,0.00025205,2]
[331977581,1720915851260,-500.0,0.00025205,2]
[331977582,1720915851270,-500.0,0.00025205,2]
[331977583,1720915851281,-500.0,0.00025205,2]
[331977584,1720915851290,-500.0,0.00025205,2]
[331977585,1720915851300,-500.0,0.00025205,2]
[331977586,1720915851309,-500.0,0.00025205,2]
[331977587,1720915851318,-500.0,0.00025205,2]
[331977588,1720915851327,-500.0,0.00025205,2]
[331977589,1720915851336,-500.0,0.00025205,2]
[331977590,1720915851345,-500.0,0.00025205,2]
[331977591,1720915851354,-500.0,0.00025205,2]
[331977592,1720915851363,-635.21,0.00025205,2]
[331977593,1720915851373,-500.0,0.00025205,2]
[331977594,1720915851382,-500.0,0.00025205,2]
[331977595,1720915851391,-151.0,0.00025205,7]
[331977596,1720915851400,-151.0,0.00025205,7]
[331977597,1720915851409,-500.0,0.00025205,2]
[331977598,1720915851418,-500.0,0.00025205,2]
[331977599,1720915851427,-500.0,0.00025205,2]
[331977600,1720915851436,-151.0,0.00025205,7]
[331977601,1720915851445,-959.92,0.00025205,2]
[331977602,1720915851454,-3096.03,0.00025205,2]
[331977603,1720915851462,-151.0,0.00025205,7]
[331977604,1720915851472,-371.168253,0.00025205,7]
[331977605,1720915851481,-521.2,0.00025205,2]
[331977606,1720915851489,-500.0,0.00025205,2]
[331977607,1720915851498,-371.168253,0.00025205,7]
[331977608,1720915851507,-500.0,0.00025205,2]
[331977609,1720915851516,-500.0,0.00025205,2]
[331977610,1720915851525,-500.0,0.00025205,2]
[331977611,1720915851534,-500.0,0.00025205,2]
[331977612,1720915851543,-500.0,0.00025205,2]
[331977613,1720915851552,-500.0,0.00025205,2]
[331977614,1720915851561,-500.0,0.00025205,2]
[331977615,1720915851570,-500.0,0.00025205,2]
[331977616,1720915851579,-500.0,0.00025205,2]
[331977617,1720915851588,-500.0,0.00025205,2]
[331977618,1720915851597,-1075.51,0.00025205,2]
[331977619,1720915851606,-18069.18,0.00025205,2]
[331977620,1720915851615,-500.0,0.00025205,2]
[331977621,1720915851624,-500.0,0.00025205,2]
[331977622,1720915851634,-500.0,0.00025205,2]
[331977623,1720915851643,-500.0,0.00025205,2]
[331977624,1720915851652,-807.346999,0.00025205,7]
[331977625,1720915851662,-500.0,0.00025205,2]
[331977626,1720915851672,-807.346999,0.00025205,7]
[331977627,1720915851681,-500.0,0.00025205,2]
[331977628,1720915851691,-500.0,0.00025205,2]
[331977629,1720915851700,-500.0,0.00025205,2]
[331977630,1720915851710,-500.0,0.00025205,2]
[331977631,1720915851719,-500.0,0.00025205,2]
[331977632,1720915851729,-500.0,0.00025205,2]
[331977633,1720915851738,-500.0,0.00025205,2]
[331977634,1720915851750,-500.0,0.00025205,2]
[331977635,1720915851759,-151.0,0.00025205,7]
[331977636,1720915851768,-500.0,0.00025205,2]
[331977637,1720915851778,-500.0,0.00025205,2]
[331977638,1720915851787,-500.0,0.00025205,2]
[331977639,1720915851797,-500.0,0.00025205,2]
[331977640,1720915851806,-500.0,0.00025205,2]
[331977641,1720915851819,-500.0,0.00025205,2]
[331977642,1720915851828,-161.3704729,0.00025205,2]
[331977643,1720915851838,-2949.39,0.00025205,2]
[331977644,1720915851848,-500.0,0.00025205,2]
[331977645,1720915851857,-500.0,0.00025205,2]
[331977646,1720915851867,-470.558223,0.00025205,7]
[331977647,1720915851876,-500.0,0.00025205,2]
[331977648,1720915851886,-670.39,0.00025205,2]
[331977649,1720915851898,-500.0,0.00025205,2]
[331977650,1720915851907,-500.0,0.00025205,2]
[331977651,1720915851917,-470.558223,0.00025205,7]
[331977652,1720915851926,-500.0,0.00025205,2]
[331977653,1720915851936,-500.0,0.00025205,2]
[331977654,1720915851946,-500.0,0.00025205,2]
[331977655,1720915851956,-500.0,0.00025205,2]
[331977656,1720915851967,-500.0,0.00025205,2]
[331977657,1720915851978,-500.0,0.00025205,2]
[331977658,1720915851988,-500.0,0.00025205,2]
[331977659,1720915851998,-500.0,0.00025205,2]
[331977660,1720915852009,-500.0,0.00025205,2]
[331977661,1720915852018,-671.769977,0.00025205,7]
[331977662,1720915852028,-500.0,0.00025205,2]
[331977663,1720915852037,-500.0,0.00025205,2]
[331977664,1720915852046,-500.0,0.00025205,2]
[331977665,1720915852056,-671.769977,0.00025205,7]
[331977666,1720915852066,-500.0,0.00025205,2]
[331977667,1720915852076,-500.0,0.00025205,2]
[331977668,1720915852086,-500.0,0.00025205,2]
[331977669,1720915852096,-500.0,0.00025205,2]
[331977670,1720915852105,-1000.0,0.00025206,2]
[331977671,1720915852115,-300.0,0.00025235,2]
[331977672,1720915852125,-300.0,0.0002526,2]
[331977673,1720915852135,-1000.0,0.00025262,2]
[331977674,1720915852144,-300.0,0.00025263,2]
[331977675,1720915852153,-1000.0,0.00025263,2]
[331977676,1720915852162,-207.2,0.00025301,2]
[331977677,1720915852171,-1000.0,0.00025335,2]
[331977678,1720915852182,-1000.0,0.0002534,2]
[331977679,1720915852191,-1000.0,0.00025366,2]
[331977680,1720915852200,-153.0,0.0002537,2]
[331977681,1720915852209,-1000.0,0.00025371,2]
[331977682,1720915852219,-1000.0,0.00025391,2]
[331977683,1720915852229,-151.0,0.00025394,7]
[331977684,1720915852239,-174.975568,0.00025394,7]
[331977685,1720915852251,-162.840297,0.00025394,7]
[331977686,1720915852262,-151.0,0.00025394,7]
[331977687,1720915852272,-151.0,0.00025394,7]
[331977688,1720915852282,-151.0,0.00025394,7]
[331977689,1720915852293,-269.113512,0.00025394,7]
[331977690,1720915852303,-151.0,0.00025394,7]
[331977691,1720915852313,-302.18418731,0.00025398,2]
[331977692,1720915852321,-150.112233,0.000254,10]
[331977693,1720915852404,-173.70369,0.000254,2]
[331977694,1720915852413,-738.11659725,0.00025404,2]
[331977695,1720915852424,-1000.0,0.00025416,2]
[331977696,1720915852432,-1000.0,0.00025422,2]
[331977697,1720915852444,-1000.0,0.0002544,2]
[331977698,1720915852454,-151.0,0.00025447,2]
[331977699,1720915852463,-190.748672,0.00025447,7]
[331977700,1720915852472,-151.0,0.00025447,7]
[331977701,1720915852482,-190.748672,0.00025447,7]
[331977702,1720915852491,-707.071712,0.00025447,7]
[331977703,1720915852502,-151.625878,0.00025447,7]
[331977704,1720915852512,-270.211047,0.00025447,7]
[331977705,1720915852522,-457.283463,0.00025447,7]
[331977706,1720915852531,-457.283463,0.00025447,7]
[331977707,1720915852540,-270.211047,0.00025447,7]
[331977708,1720915852550,-151.0,0.00025447,7]
[331977709,1720915852560,-151.0,0.00025447,7]
[331977710,1720915852569,-151.0,0.00025447,7]
[331977711,1720915852579,-25680.54500151,0.00025457,2]
[331977754,1720916835166,-158.0,0.00016254,2]
[331977755,1720916835192,-300.0,0.00016254,2]
[331977756,1720916835218,-12667.39192993,0.00016255,2]
[331977757,1720916851105,-8595.91114483,0.00016255,2]
[331977758,1720916851129,-276.84511174,0.00017531,2]
[331977759,1720916851152,-413.15689515,0.00017999,2]
[331977760,1720916851174,-365.66231165,0.00017999,2]
[331977761,1720916851195,-4864.09094029,0.00018,2]
[331977766,1720916895204,-833.11480244,0.00018,2]
[331977770,1720916895298,-833.11480244,0.00018,2]
[331977772,1720916895387,-698.80186138,0.00018,2]
[331977775,1720916920152,-880.41543177,0.00018,2]
[331977777,1720916920305,-880.41543177,0.00018,2]
[331977780,1720916920345,-640.90062691,0.00018,2]
[331977781,1720916945171,-5734.20272861,0.00018,2]
[331977782,1720916945193,-24900.0,0.00018228,2]
[331977783,1720916945213,-1927.3375417,0.00018309,2]
[331977784,1720916945242,-3000.0,0.00018689,2]
[331977785,1720916945263,-239.149694,0.00018751,2]
[331977786,1720916945284,-239.149694,0.00018803,2]
[331977788,1720916945305,-239.149694,0.00018854,2]
[331977789,1720916945326,-239.149694,0.00018906,2]
[331977791,1720916945347,-239.149694,0.00018957,2]
[331977792,1720916945367,-378.3419311,0.00018993,2]
[331977793,1720916945388,-263.8222991,0.00018993,2]
[331977794,1720916945410,-239.149694,0.00019008,2]
[331977795,1720916945430,-197.44371632,0.00019039,2]
[331977796,1720916945451,-239.149694,0.0001906,2]
[331977797,1720916945471,-239.149694,0.00019111,2]
[331977798,1720916945491,-239.149694,0.00019163,2]
[331977799,1720916945512,-161.636337,0.00019178,2]
[331977800,1720916945532,-239.149694,0.00019214,2]
[331977801,1720916945552,-239.149694,0.00019266,2]
[331977802,1720916945572,-239.149694,0.00019317,2]
[331977803,1720916945592,-239.149694,0.00019368,2]
[331977804,1720916945612,-239.149694,0.0001942,2]
[331977805,1720916945632,-239.149694,0.00019471,2]
[331977806,1720916945655,-239.149694,0.00019523,2]
[331977807,1720916945674,-239.149694,0.00019574,2]
[331977808,1720916945694,-239.149694,0.00019625,2]
[331977809,1720916945714,-239.149694,0.00019677,2]
[331977810,1720916945735,-239.149694,0.00019728,2]
[331977811,1720916945756,-536.38311499,0.0002,2]
[331977812,1720916948282,-2314.54900573,0.00018209,2]
[331977813,1720916948304,-14650.74325126,0.0002,2]
[331977814,1720916950125,-10421.7862506,0.0002,2]
[331977815,1720916950149,-161.83079,0.00020917,2]
[331977816,1720916950178,-612.271143,0.00021096,2]
[331977817,1720916950201,-282.098928,0.00021096,2]
[331977818,1720916950223,-385.7278886,0.0002127,2]
[331977819,1720916950248,-1066.36077455,0.00021917,2]
[331977820,1720916950269,-166.666666,0.00021918,2]
[331977821,1720916953251,2314.5490057,0.00021965,2]
[331977822,1720916987932,1066.36077455,0.00021818,2]
[331977823,1720916992462,192.73738937,0.00021818,2]
[331977824,1720916996907,197.44371632,0.00021818,2]
[331977825,1720916998701,156.44613062,0.00021818,2]
[331977826,1720917027386,2778.84184704,0.00021818,2]
[331977827,1720917027407,586.35502624,0.00021818,2]
[331977828,1720917027428,3506.08619285,0.00021818,2]
[331977873,1720917033077,-4677.03164596,0.0002225,2]
[331977875,1720917033089,-258.18004786,0.0002225,2]
[331977882,1720917033141,-2916.066193,0.0002225,2]
[331977887,1720917033184,-1264.11699788,0.0002225,2]
[331977889,1720917033195,-880.76070816,0.00022288,2]
[331977891,1720917033204,-166.666666,0.00022431,2]
[331977893,1720917033214,-5049.45445946,0.00022941,2]
[331977915,1720917038944,-15678.42893664,0.00022941,2]
[331977916,1720917038954,-166.666666,0.00022944,2]
[331977917,1720917038963,-421.68125987,0.00023105,2]
[331977918,1720917038973,-166.666666,0.00023456,2]
[331977919,1720917038983,-1436.35994433,0.00023966,2]
[331977920,1720917038995,-166.666666,0.00023969,2]
[331977921,1720917039004,-184.57517554,0.00024379,2]
[331977922,1720917039013,-31419.2595976,0.0002447,3]
[331977923,1720917039023,-500.0,0.00024479,2]
[331977924,1720917039032,-360.9115387,0.00024479,2]
[331977925,1720917039042,-633.5935781,0.00024479,2]
[331977926,1720917039052,-179.04629534,0.00024479,2]
[331977927,1720917039061,-313.74370763,0.00024479,2]
[331977928,1720917039070,-190.85342035,0.00024479,2]
[331977929,1720917039080,-236.58111496,0.00024479,2]
[331977930,1720917039094,-174.89477485,0.00024479,2]
[331977931,1720917039104,-163008.01135809,0.0002448,2]
[331977932,1720917039120,-6986.23838379,0.0002448,2]
[331977933,1720917039132,-32284.29555882,0.0002448,2]
[331977934,1720917039141,-25680.54500151,0.0002448,2]
[331977935,1720917039151,-166.666666,0.00024482,2]
[331977936,1720917039160,-150.112233,0.000245,3]
[331977937,1720917039169,-8075.97412487,0.00024518,2]
[331977938,1720917039178,-184.57517554,0.00024557,2]
[331977939,1720917039188,-6283.85191951,0.00024573,3]
[331977940,1720917039200,-44436.80427853,0.00024583,2]
[331977941,1720917039209,-31419.2595976,0.00024647,3]
[331977942,1720917039219,-6283.85191951,0.00024648,3]
[331977943,1720917039229,-13848.30824599,0.00024657,5]
[331977944,1720917039241,-500.0,0.00024657,2]
[331977945,1720917039251,-549.45184196,0.00024657,2]
[331977946,1720917039261,-500.0,0.00024657,2]
[331977947,1720917039272,-500.0,0.00024657,2]
[331977948,1720917039281,-500.0,0.00024657,2]
[331977949,1720917039291,-500.0,0.00024657,2]
[331977950,1720917039300,-500.0,0.00024657,2]
[331977951,1720917039309,-500.0,0.00024657,2]
[331977952,1720917039319,-500.0,0.00024657,2]
[331977953,1720917039328,-633.97674964,0.00024657,2]
[331977954,1720917039337,-500.0,0.00024657,2]
[331977955,1720917039347,-500.0,0.00024657,2]
[331977956,1720917039356,-500.0,0.00024657,2]
[331977957,1720917039366,-500.0,0.00024657,2]
[331977958,1720917039375,-500.0,0.00024657,2]
[331977959,1720917039384,-500.0,0.00024657,2]
[331977960,1720917039394,-500.0,0.00024657,2]
[331977961,1720917039403,-500.0,0.00024657,2]
[331977962,1720917039413,-1500.0,0.00024657,2]
[331977963,1720917039422,-500.0,0.00024657,2]
[331977964,1720917039431,-500.0,0.00024657,2]
[331977965,1720917039440,-500.0,0.00024657,2]
[331977966,1720917039450,-274.21813655,0.00024657,2]
[331977967,1720917039459,-165.66977464,0.00024657,2]
[331977968,1720917039469,-500.0,0.00024657,2]
[331977969,1720917039479,-500.0,0.00024657,2]
[331977970,1720917039490,-500.0,0.00024657,2]
[331977971,1720917039500,-500.0,0.00024657,2]
[331977972,1720917039510,-200.0,0.00024657,2]
[331977973,1720917039519,-513.73284018,0.00024657,2]
[331977974,1720917039531,-500.0,0.00024657,2]
[331977975,1720917039540,-500.0,0.00024657,2]
[331977976,1720917039551,-500.0,0.00024657,2]
[331977977,1720917039560,-500.0,0.00024657,2]
[331977978,1720917039569,-2136.03,0.00024657,2]
[331977979,1720917039579,-500.0,0.00024657,2]
[331977980,1720917039588,-500.0,0.00024657,2]
[331977981,1720917039597,-500.0,0.00024657,2]
[331977982,1720917039606,-500.0,0.00024657,2]
[331977983,1720917039616,-500.0,0.00024657,2]
[331977984,1720917039626,-505.55399746,0.00024657,2]
[331977985,1720917039636,-500.0,0.00024657,2]
[331977986,1720917039645,-500.0,0.00024657,2]
[331977987,1720917039654,-500.0,0.00024657,2]
[331977988,1720917039663,-500.0,0.00024657,2]
[331977989,1720917039673,-502.81008216,0.00024657,2]
[331977990,1720917039683,-500.0,0.00024657,2]
[331977991,1720917039692,-500.0,0.00024657,2]
[331977992,1720917039701,-500.0,0.00024657,2]
[331977993,1720917039710,-509.58,0.00024657,2]
[331977994,1720917039719,-500.0,0.00024657,2]
[331977995,1720917039728,-556.43095216,0.00024657,2]
[331977996,1720917039738,-500.0,0.00024657,2]
[331977997,1720917039747,-500.0,0.00024657,2]
[331977998,1720917039756,-500.0,0.00024657,2]
[331977999,1720917039765,-500.0,0.00024657,2]
[331978000,1720917039776,-500.0,0.00024657,2]
[331978001,1720917039787,-398.19877957,0.00024657,2]
[331978002,1720917039797,-500.0,0.00024657,2]
[331978004,1720917039806,-500.0,0.00024657,2]
[331978005,1720917039815,-500.0,0.00024657,2]
[331978006,1720917039825,-500.0,0.00024657,2]
[331978007,1720917039834,-500.0,0.00024657,2]
[331978008,1720917039843,-500.0,0.00024657,2]
[331978009,1720917039853,-509.49976868,0.00024657,2]
[331978010,1720917039861,-500.0,0.00024657,2]
[331978011,1720917039870,-500.0,0.00024657,2]
[331978012,1720917039880,-500.0,0.00024657,2]
[331978013,1720917039889,-500.0,0.00024657,2]
[331978014,1720917039900,-602.08218057,0.00024657,2]
[331978015,1720917039910,-500.0,0.00024657,2]